bitfinex/quotes_SOLUSD_20241229
["timestamp","ask_amount","ask_price","bid_price","bid_amount"]
[1735489108800,6.6014,194.35,194.21,23.776884]
[1735489109314,6.6014,194.35,194.19,25.52560302]
[1735489109595,6.6014,194.35,194.21,20.0]
[1735489110802,20.0,194.32,194.18,25.52560302]
[1735489110974,20.0,194.32,194.16,25.52560302]
[1735489111179,6.6014,194.35,194.18,49.30248702]
[1735489111378,1.5722,194.36,194.21,23.776884]
[1735489112086,20.0,194.35,194.21,23.776884]
[1735489112299,20.0,194.35,194.2,17.46634628]
[1735489112599,20.0,194.35,194.22,23.776884]
[1735489112984,20.0,194.35,194.22,39.72883028]
[1735489113605,20.0,194.35,194.23,23.776884]
[1735489113798,20.0,194.35,194.24,6.3808]
[1735489114101,20.0,194.35,194.25,23.776884]
[1735489114299,1.5722,194.36,194.25,23.776884]
[1735489114516,6.02261369,194.43,194.29,23.776884]
[1735489114712,6.02261369,194.43,194.29,39.72883028]
[1735489114884,20.0,194.4,194.31,23.776884]
[1735489115210,6.02261369,194.43,194.31,23.776884]
[1735489115383,6.02261369,194.43,194.29,15.95194628]
[1735489115899,6.02261369,194.43,194.31,23.776884]
[1735489116108,1.5722,194.44,194.31,23.776884]
[1735489116316,1.5722,194.44,194.34,23.776884]
[1735489116481,6.02261369,194.48,194.36,23.776884]
[1735489117101,20.0,194.45,194.36,23.776884]
[1735489117305,6.02261369,194.48,194.36,23.776884]
[1735489117506,20.0,194.45,194.36,23.776884]
[1735489117807,6.02261369,194.48,194.36,23.776884]
[1735489118416,21.5722,194.49,194.36,49.27462969]
[1735489118578,1.5722,194.49,194.36,49.27462969]
[1735489119294,21.5722,194.49,194.36,49.27462969]
[1735489120206,21.5722,194.49,194.36,23.776884]
[1735489120586,21.5722,194.49,194.31,31.58234569]
[1735489120786,20.0,194.45,194.31,6.0846]
[1735489121194,20.0,194.45,194.32,23.776884]
[1735489121711,20.0,194.45,194.31,6.0846]
[1735489121903,6.02261369,194.48,194.34,25.49774569]
[1735489122084,1.5722,194.49,194.39,23.776884]
[1735489122488,1.5722,194.49,194.39,49.27462969]
[1735489123005,1.5519,194.56,194.41,23.776884]
[1735489123409,20.0,194.54,194.41,49.27462969]
[1735489123586,1.5519,194.56,194.43,25.49774569]
[1735489123790,1.5519,194.56,194.44,23.776884]
[1735489124010,1.5519,194.56,194.44,49.27462969]
[1735489124887,1.5519,194.56,194.44,23.776884]
[1735489125317,1.5519,194.56,194.44,49.27462969]
[1735489125694,6.02261369,194.57,194.44,49.27462969]
[1735489126418,21.5519,194.59,194.44,23.776884]
[1735489127134,24.51963033,194.59,194.42,20.602072]
[1735489127293,20.0,194.55,194.41,1.5604]
[1735489127799,20.0,194.55,194.4,6.0846]
[1735489128202,3.72929582,194.55,194.4,6.0846]
[1735489128720,3.72929582,194.55,194.41,23.776884]
[1735489129020,3.72929582,194.55,194.4,6.0846]
[1735489129920,20.0,194.57,194.41,23.776884]
[1735489131321,20.0,194.56,194.41,23.776884]
[1735489131693,20.0,194.56,194.41,49.27462969]
[1735489131895,20.0,194.56,194.44,23.776884]
[1735489132195,20.0,194.56,194.44,49.27462969]
[1735489132517,1.5519,194.59,194.46,49.27462969]
[1735489133522,1.5519,194.59,194.48,49.27462969]
[1735489133815,1.5519,194.59,194.48,23.776884]
[1735489134196,21.5519,194.59,194.47,23.776884]
[1735489134697,21.5519,194.59,194.44,23.776884]
[1735489135418,21.5519,194.59,194.45,23.776884]
[1735489136620,21.5519,194.59,194.43,25.49774569]
[1735489136835,21.5519,194.59,194.41,27.00624569]
[1735489137115,27.57451369,194.59,194.41,27.00624569]
[1735489137317,27.57451369,194.59,194.41,1.5085]
[1735489137523,20.0,194.55,194.4,6.0846]
[1735489138426,20.0,194.55,194.41,23.776884]
[1735489138596,20.0,194.55,194.4,6.0846]
[1735489139420,20.0,194.55,194.41,23.776884]
[1735489142641,20.0,194.51,194.36,47.00624569]
[1735489142832,20.0,194.51,194.36,20.0]
[1735489143008,20.0,194.51,194.35,6.5433]
[1735489143438,20.0,194.51,194.36,23.776884]
[1735489145126,26.02261369,194.51,194.35,6.5433]
[1735489145321,26.02261369,194.51,194.36,23.776884]
[1735489145503,1.5552,194.5,194.36,23.776884]
[1735489145707,1.5552,194.5,194.35,6.5433]
[1735489146128,1.5552,194.5,194.36,23.776884]
[1735489146807,1.5552,194.5,194.33,23.776884]
[1735489147527,1.5552,194.5,194.36,15.93426216]
[1735489147707,1.5552,194.5,194.37,23.776884]
[1735489149017,1.5552,194.5,194.34,15.93426216]
[1735489149318,1.5552,194.5,194.35,23.776884]
[1735489149525,1.5552,194.5,194.35,39.71114616]
[1735489149734,1.5552,194.5,194.39,23.776884]
[1735489150332,1.5552,194.5,194.37,49.25632667]
[1735489151604,1.5552,194.5,194.36,6.6172]
[1735489151804,20.0,194.47,194.36,6.6172]
[1735489152023,20.0,194.47,194.32,27.231915]
[1735489152234,20.0,194.47,194.33,23.776884]
[1735489152409,20.0,194.47,194.33,49.25632667]
[1735489152805,20.0,194.47,194.33,23.776884]
[1735489155442,20.0,194.47,194.35,23.776884]
[1735489155630,1.5552,194.5,194.35,23.776884]
[1735489155937,1.5552,194.5,194.38,25.47944267]
[1735489156140,1.5552,194.5,194.39,23.776884]
[1735489156431,1.5883,194.55,194.43,23.776884]
[1735489156839,1.5883,194.55,194.41,26.99394267]
[1735489157015,1.5883,194.55,194.41,1.5145]
[1735489157214,3.45294791,194.55,194.4,6.6172]
[1735489157411,20.0,194.52,194.41,23.776884]
[1735489159855,20.0,194.52,194.36,1.5145]
[1735489160017,20.0,194.52,194.36,1.44750626]
[1735489160320,20.0,194.48,194.35,6.3732]
[1735489160718,20.0,194.48,194.36,23.776884]
[1735489161648,1.659,194.47,194.35,6.3732]
[1735489161832,1.659,194.47,194.3,6.3732]
[1735489162038,1.659,194.47,194.3,26.3732]
[1735489163151,1.659,194.47,194.31,23.776884]
[1735489163330,20.0,194.44,194.31,23.776884]
[1735489165349,20.0,194.44,194.3,6.3732]
[1735489165533,20.0,194.4,194.25,6.455]
[1735489165740,1.599,194.39,194.25,6.455]
[1735489167240,1.599,194.39,194.28,49.25632667]
[1735489167428,20.0,194.4,194.28,49.25632667]
[1735489167653,1.599,194.44,194.31,23.776884]
[1735489168031,1.599,194.44,194.33,23.776884]
[1735489168240,21.599,194.44,194.33,49.25632667]
[1735489168439,1.599,194.44,194.35,23.776884]
[1735489169250,1.599,194.49,194.35,23.776884]
[1735489169448,20.0,194.47,194.35,23.776884]
[1735489169932,1.599,194.49,194.35,23.776884]
[1735489170133,1.599,194.49,194.35,49.25632667]
[1735489170454,21.599,194.49,194.38,23.776884]
[1735489170852,21.599,194.49,194.37,23.776884]
[1735489171050,1.599,194.52,194.37,50.02772377]
[1735489171253,1.599,194.52,194.39,23.776884]
[1735489171774,21.599,194.52,194.39,24.54816228]
[1735489173859,21.599,194.52,194.39,50.02760495]
[1735489174561,20.0,194.53,194.4,6.455]
[1735489174862,1.599,194.57,194.43,49.25632667]
[1735489175062,1.599,194.57,194.43,50.02742871]
[1735489175248,21.599,194.57,194.45,23.776884]
[1735489175634,21.599,194.57,194.43,26.25054471]
[1735489175869,1.599,194.57,194.44,49.25632667]
[1735489176078,1.599,194.57,194.44,50.02736944]
[1735489176984,21.599,194.57,194.44,24.54792677]
[1735489177267,1.599,194.57,194.46,23.776884]
[1735489177645,21.599,194.57,194.46,23.776884]
[1735489178146,21.599,194.57,194.47,23.776884]
[1735489178340,1.5043,194.62,194.47,49.25632667]
[1735489178536,1.5043,194.62,194.49,30.386784]
[1735489179169,20.0,194.61,194.49,30.386784]
[1735489179357,20.0,194.61,194.44,32.08934267]
[1735489180349,20.0,194.61,194.45,23.776884]
[1735489182574,20.0,194.61,194.45,49.25632667]
[1735489182747,20.0,194.61,194.48,23.776884]
[1735489182947,20.0,194.61,194.48,24.54779304]
[1735489183479,20.0,194.61,194.45,25.47944267]
[1735489183678,20.0,194.61,194.46,23.776884]
[1735489184073,20.0,194.61,194.47,24.54786819]
[1735489184275,20.0,194.61,194.49,23.776884]
[1735489184862,20.0,194.61,194.49,50.02720347]
[1735489185490,1.5043,194.62,194.49,50.02720347]
[1735489186586,1.5043,194.62,194.47,25.47944267]
[1735489186884,1.5043,194.62,194.47,23.776884]
[1735489187178,1.5043,194.62,194.47,50.02729365]
[1735489187565,1.5043,194.62,194.47,0.77096698]
[1735489187774,1.5043,194.62,194.45,25.47944267]
[1735489188098,1.5043,194.62,194.46,23.776884]
[1735489188285,1.5043,194.62,194.46,49.25632667]
[1735489189087,1.5043,194.62,194.48,23.776884]
[1735489189779,4.57644578,194.62,194.48,23.776884]
[1735489190077,20.0,194.59,194.48,23.776884]
[1735489190281,20.0,194.59,194.48,49.25632667]
[1735489190463,20.0,194.59,194.48,50.02720876]
[1735489190665,20.0,194.59,194.48,24.54776609]
[1735489191287,20.0,194.59,194.45,25.47944267]
[1735489191588,20.0,194.59,194.47,23.776884]
[1735489192464,6.6511,194.58,194.44,6.6099]
[1735489192662,20.0,194.55,194.45,23.776884]
[1735489193798,7.52691369,194.62,194.45,40.45882947]
[1735489193969,1.5043,194.62,194.47,39.68781706]
[1735489194303,1.5043,194.62,194.48,15.91093306]
[1735489194487,1.5043,194.62,194.5,23.776884]
[1735489194684,1.5043,194.62,194.47,15.91093306]
[1735489194888,1.5043,194.62,194.47,35.91093306]
[1735489195075,1.5043,194.62,194.48,23.776884]
[1735489195402,1.5043,194.62,194.48,39.68781706]
[1735489195683,1.5043,194.62,194.47,35.91093306]
[1735489195889,1.5043,194.62,194.48,23.776884]
[1735489196392,1.5043,194.62,194.45,16.68188763]
[1735489196685,1.5043,194.62,194.44,6.6099]
[1735489198307,1.5043,194.62,194.45,23.776884]
[1735489205905,20.0,194.58,194.44,23.776884]
[1735489206396,20.0,194.58,194.42,1.6643]
[1735489206779,1.5954,194.57,194.42,1.6643]
[1735489207505,1.5954,194.57,194.43,23.776884]
[1735489211819,1.5954,194.57,194.43,50.01321136]
[1735489213007,1.5954,194.57,194.43,24.54802309]
[1735489213207,1.5954,194.57,194.43,23.776884]
[1735489213706,1.5954,194.57,194.42,1.6643]
[1735489214316,1.5954,194.57,194.43,23.776884]
[1735489215107,4.56313033,194.57,194.43,23.776884]
[1735489215312,20.0,194.54,194.43,23.776884]
[1735489215509,20.0,194.54,194.42,1.6643]
[1735489215817,20.0,194.54,194.4,6.1388]
[1735489216195,6.02261369,194.54,194.4,6.1388]
[1735489216512,6.02261369,194.54,194.41,23.776884]
[1735489216700,6.02261369,194.54,194.4,6.1388]
[1735489217013,6.02261369,194.54,194.41,23.776884]
[1735489217604,20.0,194.5,194.37,1.6116]
[1735489217903,1.5789,194.49,194.35,6.5611]
[1735489218220,20.0,194.46,194.36,23.776884]
[1735489218402,0.188432,194.45,194.36,23.776884]
[1735489218807,20.188432,194.45,194.3,6.5611]
[1735489219116,20.0,194.41,194.3,6.5611]
[1735489219629,20.0,194.41,194.31,23.776884]
[1735489219930,20.0,194.41,194.3,6.5611]
[1735489220237,1.5789,194.43,194.31,23.776884]
[1735489222419,1.5789,194.43,194.27,1.6116]
[1735489222611,1.5789,194.43,194.29,20.0]
[1735489222807,1.5789,194.43,194.28,35.93805656]
[1735489223419,1.5789,194.43,194.29,23.776884]
[1735489223619,23.776884,194.42,194.25,6.5611]
[1735489223821,20.0,194.39,194.25,6.5611]
[1735489224527,20.0,194.39,194.26,23.776884]
[1735489224714,6.02261369,194.41,194.26,23.776884]
[1735489224914,1.5789,194.43,194.29,39.71494056]
[1735489225120,1.5789,194.43,194.31,23.776884]
[1735489225424,1.5789,194.43,194.31,42.11466658]
[1735489225730,1.5789,194.43,194.33,23.776884]
[1735489230834,20.188432,194.45,194.33,23.776884]
[1735489233116,20.188432,194.45,194.32,6.4698]
[1735489233318,20.188432,194.45,194.33,23.776884]
[1735489233513,22.05307991,194.45,194.33,23.776884]
[1735489233818,26.21104569,194.45,194.33,23.776884]
[1735489236112,26.21104569,194.45,194.32,6.4698]
[1735489236514,26.21104569,194.45,194.33,23.776884]
[1735489238944,20.188432,194.45,194.33,23.776884]
[1735489239949,0.188432,194.45,194.35,23.776884]
[1735489240133,0.188432,194.45,194.37,25.49487996]
[1735489240442,0.188432,194.45,194.41,23.776884]
[1735489240622,0.188432,194.45,194.43,23.776884]
[1735489241317,0.188432,194.45,194.42,49.27176396]
[1735489241546,0.188432,194.45,194.44,49.27176396]
[1735489243019,0.188432,194.45,194.44,56.92046396]
[1735489243219,1.6509,194.62,194.48,20.0]
[1735489243418,21.6509,194.62,194.49,49.27176396]
[1735489244033,21.6509,194.62,194.51,23.776884]
[1735489245322,21.6509,194.62,194.52,23.776884]
[1735489245527,1.6509,194.62,194.54,23.776884]
[1735489245765,6.02261369,194.65,194.54,23.776884]
[1735489246045,20.0,194.62,194.54,23.776884]
[1735489246517,1.6509,194.68,194.54,50.04248507]
[1735489246723,1.6509,194.68,194.56,23.776884]
[1735489246922,1.6509,194.68,194.56,50.04232785]
[1735489247339,1.6509,194.68,194.56,23.776884]
[1735489247524,21.6509,194.68,194.56,23.776884]
[1735489248361,6.02261369,194.71,194.6,23.776884]
[1735489248649,1.6509,194.73,194.62,23.776884]
[1735489249856,21.6509,194.73,194.62,23.776884]
[1735489251729,21.6509,194.73,194.62,39.66513274]
[1735489252054,1.6509,194.73,194.64,23.776884]
[1735489252351,1.6509,194.77,194.67,15.88824874]
[1735489252554,1.6509,194.77,194.68,0.77011737]
[1735489252733,1.6509,194.77,194.69,23.776884]
[1735489253446,6.02261369,194.81,194.67,23.776884]
[1735489253652,1.5991,194.82,194.7,6.4481]
[1735489253952,1.5991,194.82,194.71,23.776884]
[1735489254852,20.0,194.81,194.71,23.776884]
[1735489255348,1.5991,194.82,194.71,49.17321632]
[1735489255646,1.5991,194.82,194.71,23.776884]
[1735489256169,12.25131369,194.81,194.65,6.4481]
[1735489256375,20.0,194.78,194.65,6.4481]
[1735489256660,20.0,194.78,194.62,1.5658]
[1735489256661,20.0,194.74,194.62,1.5658]
[1735489256896,20.0,194.74,194.63,23.776884]
[1735489257573,20.0,194.74,194.62,1.5658]
[1735489258048,20.0,194.74,194.62,23.776884]
[1735489260987,6.2287,194.81,194.61,6.4481]
[1735489260988,6.2287,194.81,194.65,23.776884]
[1735489261194,6.2287,194.81,194.65,49.94344099]
[1735489262894,20.0,194.78,194.65,24.54710867]
[1735489263186,20.0,194.78,194.61,7.21832947]
[1735489263489,20.0,194.74,194.61,6.4481]
[1735489263693,20.0,194.74,194.62,23.776884]
[1735489264063,20.0,194.74,194.61,6.4481]
[1735489264313,20.0,194.7,194.56,6.4915]
[1735489264600,1.6145,194.69,194.56,6.4915]
[1735489264963,1.6145,194.69,194.57,23.776884]
[1735489265271,1.6145,194.69,194.58,26.16690169]
[1735489265471,1.6145,194.69,194.59,45.39633232]
[1735489265683,1.6145,194.69,194.6,23.776884]
[1735489265892,1.6145,194.69,194.57,25.39633232]
[1735489265893,1.6145,194.69,194.56,6.4915]
[1735489266079,1.6145,194.69,194.57,23.776884]
[1735489266283,1.6145,194.69,194.59,25.39633232]
[1735489266604,20.0,194.7,194.61,23.776884]
[1735489266969,20.0,194.7,194.59,23.776884]
[1735489267478,20.0,194.7,194.6,23.776884]
[1735489268279,20.0,194.7,194.61,23.776884]
[1735489268716,21.6145,194.74,194.62,23.776884]
[1735489269474,21.6145,194.74,194.63,23.776884]
[1735489269804,1.6145,194.74,194.63,23.776884]
[1735489270708,1.6145,194.74,194.62,1.6495]
[1735489271417,1.6145,194.74,194.63,23.776884]
[1735489271903,1.6145,194.74,194.6,23.776884]
[1735489272371,1.6145,194.74,194.58,1.6495]
[1735489272572,20.0,194.73,194.54,1.6495]
[1735489272904,20.0,194.69,194.54,1.6495]
[1735489274029,1.5568,194.68,194.51,6.074]
[1735489274327,20.0,194.65,194.51,6.074]
[1735489274535,20.0,194.65,194.52,23.776884]
[1735489275334,20.0,194.65,194.51,6.074]
[1735489276123,20.0,194.65,194.52,23.776884]
[1735489276499,20.0,194.65,194.52,49.17321632]
[1735489276699,20.0,194.65,194.52,23.776884]
[1735489278816,20.0,194.65,194.52,39.68351355]
[1735489279629,20.0,194.65,194.52,23.776884]
[1735489280834,1.5568,194.68,194.52,23.776884]
[1735489283950,20.0,194.64,194.51,6.074]
[1735489284247,20.0,194.6,194.46,42.50422955]
[1735489284412,20.0,194.6,194.46,23.27520867]
[1735489284942,20.0,194.6,194.47,23.776884]
[1735489286054,1.6091,194.59,194.47,23.776884]
[1735489286750,1.6091,194.59,194.46,6.5976]
[1735489286906,5.34820123,194.58,194.38,15.90662955]
[1735489287251,5.34820123,194.58,194.41,23.776884]
[1735489287809,5.34820123,194.58,194.4,15.90662955]
[1735489288010,5.34820123,194.58,194.4,16.67779656]
[1735489288538,5.34820123,194.58,194.43,23.776884]
[1735489288711,5.34820123,194.58,194.41,23.776884]
[1735489289707,5.34820123,194.58,194.38,15.90662955]
[1735489289911,5.34820123,194.58,194.39,23.776884]
[1735489290111,5.34820123,194.58,194.39,39.68351355]
[1735489290348,5.34820123,194.58,194.41,15.90662955]
[1735489290540,5.34820123,194.58,194.41,16.67774877]
[1735489291053,5.34820123,194.58,194.43,15.90662955]
[1735489291351,1.6091,194.59,194.45,30.374484]
[1735489291515,1.6091,194.59,194.45,46.28111355]
[1735489292017,1.6091,194.59,194.47,39.68351355]
[1735489292543,1.6091,194.59,194.47,23.776884]
[1735489292715,1.6091,194.59,194.45,6.5976]
[1735489293115,1.6091,194.59,194.46,23.776884]
[1735489293337,1.6091,194.59,194.46,39.68351355]
[1735489293741,1.6091,194.59,194.46,23.776884]
[1735489294226,1.6091,194.59,194.47,23.776884]
[1735489295035,1.6091,194.59,194.49,39.68351355]
[1735489295339,20.0,194.6,194.49,39.68351355]
[1735489297340,1.6091,194.63,194.51,23.776884]
[1735489297545,1.6091,194.63,194.52,39.68351355]
[1735489297749,1.6091,194.63,194.52,23.776884]
[1735489298442,1.6091,194.63,194.51,15.90662955]
[1735489298650,1.6091,194.63,194.51,39.68351355]
[1735489298831,1.6091,194.63,194.51,15.90662955]
[1735489299028,1.6091,194.63,194.5,0.77074454]
[1735489299229,1.6091,194.63,194.49,20.0]
[1735489299460,1.6091,194.63,194.5,23.776884]
[1735489300531,1.6091,194.63,194.46,15.90662955]
[1735489300731,1.6091,194.63,194.49,20.0]
[1735489301158,1.6091,194.63,194.45,27.36850204]
[1735489301327,1.6091,194.63,194.45,6.5976]
[1735489301749,20.0,194.59,194.45,6.5976]
[1735489301936,20.0,194.59,194.46,23.776884]
[1735489302848,20.0,194.59,194.45,6.5976]
[1735489303751,20.0,194.59,194.46,23.776884]
[1735489304940,1.5946,194.58,194.45,23.776884]
[1735489305249,1.5946,194.58,194.41,16.67772001]
[1735489306542,1.5946,194.58,194.42,39.68351355]
[1735489306747,1.5946,194.58,194.42,23.776884]
[1735489306942,1.5946,194.58,194.42,39.68351355]
[1735489307844,1.5946,194.58,194.4,15.90662955]
[1735489308257,1.5946,194.58,194.41,23.776884]
[1735489308557,1.5946,194.58,194.39,22.22432955]
[1735489308757,20.0,194.55,194.39,6.3177]
[1735489309060,20.0,194.55,194.4,39.68351355]
[1735489309245,1.5946,194.58,194.4,39.68351355]
[1735489309776,1.5946,194.58,194.4,40.45466833]
[1735489310544,1.5946,194.58,194.39,6.3177]
[1735489310758,26.1941,194.54,194.39,6.3177]
[1735489310953,1.5946,194.53,194.4,23.776884]
[1735489311267,1.5946,194.53,194.4,39.68351355]
[1735489311470,1.5946,194.53,194.4,24.54819522]
[1735489311770,1.5946,194.53,194.4,23.776884]
[1735489311943,1.5946,194.53,194.41,16.67781755]
[1735489312145,1.5946,194.53,194.4,39.68351355]
[1735489312857,1.5946,194.53,194.4,23.776884]
[1735489313162,1.5946,194.53,194.39,6.3177]
[1735489314446,1.5946,194.53,194.4,23.776884]
[1735489316172,1.5946,194.53,194.4,39.68351355]
[1735489316343,1.5946,194.53,194.41,0.77115918]
[1735489317244,1.5946,194.53,194.4,23.776884]
[1735489317855,1.5946,194.53,194.4,40.45473263]
[1735489319491,1.5946,194.53,194.4,23.776884]
[1735489320354,20.0,194.5,194.39,6.3177]
[1735489321858,20.0,194.5,194.4,23.776884]
[1735489322483,20.0,194.5,194.38,23.776884]
[1735489324077,26.0254,194.5,194.35,6.0137]
[1735489324254,32.04801369,194.5,194.35,6.0137]
[1735489324617,20.0,194.46,194.35,6.0137]
[1735489324754,20.0,194.46,194.36,23.776884]
[1735489324957,20.0,194.46,194.35,6.0137]
[1735489325287,20.0,194.47,194.36,23.776884]
[1735489325577,1.6585,194.46,194.32,1.578]
[1735489325779,20.0,194.45,194.32,1.578]
[1735489325965,20.0,194.45,194.33,23.776884]
[1735489326356,20.0,194.44,194.3,6.78521786]
[1735489326669,20.0,194.44,194.3,22.69195232]
[1735489326872,20.0,194.45,194.31,23.776884]
[1735489327068,20.0,194.45,194.33,23.776884]
[1735489328485,6.02261369,194.44,194.3,6.0137]
[1735489329199,6.02261369,194.44,194.31,23.776884]
[1735489329359,6.02261369,194.44,194.27,1.578]
[1735489329559,20.0,194.4,194.25,26.5105]
[1735489329797,26.02261369,194.4,194.26,23.776884]
[1735489330086,26.02261369,194.4,194.25,6.5105]
[1735489330379,6.02261369,194.39,194.25,6.5105]
[1735489330595,20.0,194.36,194.25,6.5105]
[1735489330763,1.6144,194.35,194.22,1.5117]
[1735489331098,20.0,194.32,194.21,6.5105]
[1735489333155,20.0,194.32,194.17,1.5117]
[1735489333363,1.6144,194.31,194.17,20.0]
[1735489333617,1.6144,194.31,194.12,17.41832955]
[1735489333777,1.6144,194.31,194.13,20.0]
[1735489334689,1.6144,194.31,194.12,17.41832955]
[1735489334986,1.6144,194.31,194.12,38.05230755]
[1735489335192,1.6144,194.31,194.13,39.68351355]
[1735489335671,20.0,194.28,194.13,23.776884]
[1735489338275,20.0,194.28,194.12,1.5117]
[1735489338487,6.44677824,194.31,194.14,15.90662955]
[1735489338692,1.6144,194.31,194.17,23.776884]
[1735489339195,1.6144,194.31,194.15,15.90662955]
[1735489339375,1.6144,194.31,194.16,23.776884]
[1735489341085,1.6144,194.31,194.17,15.90662955]
[1735489341476,1.6144,194.31,194.19,23.776884]
[1735489341688,1.6144,194.31,194.21,23.776884]
[1735489342798,1.6144,194.31,194.21,39.68351355]
[1735489343001,1.6144,194.31,194.21,23.776884]
[1735489343795,1.6144,194.31,194.21,39.68351355]
[1735489344003,1.5313,194.36,194.23,39.68351355]
[1735489344193,21.5313,194.36,194.24,23.776884]
[1735489344597,21.5313,194.36,194.23,23.776884]
[1735489345086,21.5313,194.36,194.23,39.68351355]
[1735489346905,21.5313,194.36,194.24,15.90662955]
[1735489347111,1.5313,194.41,194.27,15.90662955]
[1735489348202,21.5313,194.41,194.28,23.776884]
[1735489348791,21.5313,194.41,194.27,23.776884]
[1735489349185,21.5313,194.41,194.23,35.90662955]
[1735489349385,20.0,194.39,194.24,23.776884]
[1735489349685,20.0,194.39,194.24,39.68351355]
[1735489349886,20.0,194.39,194.24,23.776884]
[1735489350082,20.0,194.39,194.22,15.90662955]
[1735489350303,20.0,194.39,194.22,23.776884]
[1735489350485,80.9,194.48,194.21,18.28047613]
[1735489350486,20.0,194.37,194.21,1.602]
[1735489350900,20.0,194.37,194.22,23.776884]
[1735489351781,22.67353681,194.37,194.21,1.602]
[1735489352028,1.5313,194.36,194.21,1.602]
[1735489352299,1.5313,194.36,194.22,23.776884]
[1735489358203,1.5313,194.36,194.21,18.28063453]
[1735489358204,1.5313,194.36,194.24,39.68351355]
[1735489358605,1.5313,194.36,194.24,23.776884]
[1735489359016,1.5313,194.36,194.26,23.776884]
[1735489359708,20.0,194.37,194.26,39.68351355]
[1735489359893,20.0,194.37,194.28,23.776884]
[1735489360306,6.5564,194.4,194.28,23.776884]
[1735489360912,20.0,194.37,194.28,23.776884]
[1735489361095,7.3249248,194.41,194.3,23.776884]
[1735489361495,1.5912,194.41,194.3,41.26281355]
[1735489361700,6.4066,194.46,194.32,23.776884]
[1735489361894,20.0,194.43,194.32,23.776884]
[1735489362707,7.9978,194.46,194.32,39.68351355]
[1735489362892,1.5912,194.46,194.34,23.776884]
[1735489363207,1.5912,194.46,194.34,39.68351355]
[1735489363414,1.5912,194.46,194.36,23.776884]
[1735489363612,20.0,194.48,194.38,23.776884]
[1735489364486,7.75804147,194.51,194.38,23.776884]
[1735489365790,1.5912,194.51,194.38,39.68351355]
[1735489366201,20.0,194.49,194.38,39.68351355]
[1735489366404,20.0,194.49,194.4,23.776884]
[1735489366813,1.5912,194.51,194.4,23.776884]
[1735489367315,6.16684147,194.55,194.38,17.48592955]
[1735489367316,7.75804147,194.55,194.42,23.776884]
[1735489367503,1.5912,194.55,194.42,39.68351355]
[1735489367692,1.5912,194.55,194.44,23.776884]
[1735489369217,1.5912,194.55,194.4,15.90662955]
[1735489369525,1.5912,194.55,194.41,0.77114072]
[1735489370997,1.5912,194.55,194.42,23.776884]
[1735489371512,20.0,194.57,194.39,0.7711333]
[1735489371513,1.5912,194.53,194.39,0.7711333]
[1735489371688,1.5912,194.5,194.31,6.5645]
[1735489371886,1.5912,194.45,194.27,6.5645]
[1735489372092,20.0,194.42,194.27,6.5645]
[1735489372314,20.0,194.41,194.27,6.5645]
[1735489372520,27.1033089,194.41,194.28,23.776884]
[1735489374712,27.1033089,194.41,194.27,6.5645]
[1735489375107,27.1033089,194.41,194.28,23.776884]
[1735489377410,1.5912,194.45,194.3,23.776884]
[1735489377615,1.5912,194.45,194.3,39.68351355]
[1735489377817,20.0,194.43,194.32,23.776884]
[1735489380107,20.0,194.43,194.34,23.776884]
[1735489380733,20.0,194.43,194.33,16.67814531]
[1735489380734,20.0,194.43,194.36,23.776884]
[1735489384331,20.0,194.43,194.28,0.77146234]
[1735489385103,20.0,194.43,194.3,20.0]